Cogmind - Beta 10.2 @@@ ROGUE MODE // 2021.12.04 @ 10:36:07 Player: OldPopsy Result: Destroyed by as-46081 with Assembled Maul Performance ------------- Evolutions (1) 500 Regions Visited (3) 600 Robots Destroyed (10) 50 Value Destroyed (167) 167 Prototype IDs (0) 0 Alien Tech Used (0) 0 Bonus (0) 0 TOTAL SCORE: 1317 Bonus ------- None Cogmind --------- Core Integrity 0/400 Matter 186/300 Energy 100/100 System Corruption 4% Temperature Cool (12) Movement Core (550) Ox10 Location -9/Mines Parts ------- > --- POWER (2) -------- (None) > --- PROPULSION (2) --- (None) > --- UTILITY (3) ------ High-capacity Storage Unit > --- WEAPON (2) ------- (None) > --- INVENTORY (12) --- Small Storage Unit Small Laser Small Laser Beam Cannon Peak State ------------ > --- POWER ------------ Ion Engine > --- PROPULSION ------- Aluminum Leg Aluminum Leg > --- UTILITY ---------- Small Storage Unit Targeting Computer > --- WEAPON ----------- Beam Cannon Grenade Launcher > --- INVENTORY -------- Small Laser Small Laser [Rating: 7] Favorites ----------- Power Ion Engine Engine Ion Engine Propulsion Aluminum Leg Leg Aluminum Leg Utility Small Storage Unit Storage Small Storage Unit Processor Transport Network Coupler Weapon Grenade Launcher Energy Gun Small Laser Energy Cannon Beam Cannon Ballistic Cannon Light Cannon Launcher Grenade Launcher Build | -11 -10 -9 -9 ------- Run | Scr Mat Mat Min Slots Evolved 2 | . . 2 . Power 1 | . . 1 . Propulsion . | . . . . Utility 1 | . . 1 . Weapon . | . . . . Parts Attached 12 | 6 5 1 . Power 1 | 1 . . . Engine 1 | 1 . . . Core . | . . . . Reactor . | . . . . Propulsion 2 | 2 . . . Treads . | . . . . Leg 2 | 2 . . . Wheel . | . . . . Hover . | . . . . Flight . | . . . . Utility 4 | 1 2 1 . Device . | . . . . Storage 2 | 1 . 1 . Processor 2 | . 2 . . Hackware . | . . . . Protection . | . . . . Artifact . | . . . . Weapon 5 | 2 3 . . Energy Gun 2 | 2 . . . Energy Cannon 1 | . 1 . . Ballistic Gun . | . . . . Ballistic Cannon 1 | . 1 . . Launcher 1 | . 1 . . Special Weapon . | . . . . Impact Weapon . | . . . . Slashing Weapon . | . . . . Piercing Weapon . | . . . . Special Melee Weapon . | . . . . Unidentified Prototypes . | . . . . Parts Lost 6 | . . 1 5 Power 1 | . . . 1 Propulsion 2 | . . . 2 Utility 1 | . . . 1 Weapon 2 | . . 1 1 Highest Loss Streak 4 | . . 1 4 Average Slot Usage (%) 77 | . 94 76 47 Engine 11 | . 14 11 5 Leg 22 | . 28 22 14 Storage 12 | . 14 11 11 Processor 9 | . 8 11 10 Energy Gun 1 | . 3 . . Energy Cannon 3 | . 8 . . Ballistic Cannon 7 | . 3 11 6 Launcher 9 | . 12 10 . Naked Turns . | . . . . Heaviest Build 43 | 11 15 43 40 Greatest Support 20 | 20 20 20 20 Greatest Overweight (x) 10 | 2 . 2 10 Average Overweight (x) . | . . . 2 Largest Inventory Capacity 12 | 6 6 12 12 Average Capacity 7 | 5 6 8 12 Most Carried 4 | 2 3 4 4 Average Carried 2 | . 2 3 4 Final Capacity 12 | 6 6 12 12 Final Carried 4 | . 3 4 4 Class Distribution -------------------- 100% | Mutant Dominant Class ---------------- Mutant | -10/Materials Mutant | -9/Materials Mutant | -9/Mines Resources | -11 -10 -9 -9 ----------- Run | Scr Mat Mat Min Matter Collected 367 | 249 117 . 1 Remotely . | . . . . Salvage Created 187 | . 187 . . Parts 17 | . 17 . . Haulers Intercepted 2 | . 2 . . Recyclers Shooed . | . . . . Parts Field Recycled . | . . . . Retrieved Matter . | . . . . Parts Self-Destructed . | . . . . Prevented . | . . . . Kills | -11 -10 -9 -9 ------- Run | Scr Mat Mat Min Combat Hostiles Destroyed 6 | . 5 1 . Cannons 1 | . 1 . . AOE 5 | . 4 1 . Classes Destroyed 5 | . 4 1 . Builder 2 | . 2 . . Hauler 2 | . 2 . . Swarmer 3 | . 3 . . Grunt 2 | . 2 . . Sentry 1 | . . 1 . Best Kill Streak 7 | . 7 1 . Combat Bots Only 5 | . 5 1 . Max Kills in Single Turn 4 | . 4 1 . Gunslinging . | . . . . Exploded 3 | . 3 1 . Melee . | . . . . Uniques/NPCs Destroyed . | . . . . Combat | -11 -10 -9 -9 -------- Run | Scr Mat Mat Min Damage Taken 1233 | . 242 223 768 Core 456 | . 52 103 301 Absorbed by Shields . | . . . . Core Remaining (%) 89 | 100 79 . . Volleys Fired 26 | . 20 6 . Largest 2 | . 2 2 . Hottest 90 | . 90 65 . Shots Fired 39 | . 27 12 . Gun . | . . . . Cannon 22 | . 16 6 . Launcher 17 | . 11 6 . Special . | . . . . Kinetic 8 | . 2 6 . Thermal 14 | . 14 . . Explosive 17 | . 11 6 . Electromagnetic . | . . . . Robot Hit Streak 8 | . 3 8 . Robot Miss Streak 4 | . 4 . . Penetration Max . | . . . . Secondary Targets . | . . . . Shots Hit Robots 13 | . 7 6 . Core Hits 17 | . 11 6 . Critical Hits . | . . . . Critical Kills . | . . . . Critical Parts Destroyed . | . . . . Melee Attacks . | . . . . Impact . | . . . . Slashing . | . . . . Piercing . | . . . . Sneak Attacks . | . . . . Combat Hostiles . | . . . . Follow-up Attacks . | . . . . Damage Inflicted 737 | . 490 247 . Guns . | . . . . Cannons 189 | . 103 86 . Explosions 537 | . 376 161 . Melee . | . . . . Ramming 11 | . 11 . . Kinetic 86 | . . 86 . Thermal 103 | . 103 . . Explosive 537 | . 376 161 . Electromagnetic . | . . . . Impact . | . . . . Slashing . | . . . . Piercing . | . . . . Highest Corruption 4 | . . . 4 Average Corruption 4 | . . . 4 Corruption Purged . | . . . . Overload Shots . | . . . . Overflow Damage 35 | . 10 25 . Projectiles . | . . . . Explosions 35 | . 10 25 . Melee . | . . . . Knockbacks . | . . . . Impact . | . . . . Kinetic . | . . . . Secondary . | . . . . Self-Inflicted Damage 62 | . 62 . . Shots 3 | . 3 . . Rammed 1 | . 1 . . Targets Rammed 3 | . 3 . . Kicked 2 | . 2 . . Crushed . | . . . . Highest Temperature 102 | . 102 7 12 Average Temperature 37 | . 41 4 12 Received Heat Transfer 289 | . 48 81 160 Siege Activations . | . . . . Robots Corrupted . | . . . . Combat Hostiles . | . . . . Parts Fried . | . . . . Impact Corruptions . | . . . . Robots Melted . | . . . . Combat Hostiles . | . . . . Parts Melted . | . . . . Heat Transferred 222 | . 222 . . Parts Sabotaged . | . . . . Parts Stolen . | . . . . Parts Stripped . | . . . . Power Chain Reactions . | . . . . Missiles Intercepted . | . . . . Alert | -11 -10 -9 -9 ------- Run | Scr Mat Mat Min Peak Influence 218 | . 195 218 84 Initial 84 | . . 81 84 Average 94 | . 83 141 67 Maximum Alert Level 1 | . . 1 . Low Security (%) 94 | 100 100 85 100 Level 1 5 | . . 14 . Level 2 . | . . . . Level 3 . | . . . . Level 4 . | . . . . Level 5 . | . . . . High Security . | . . . . Max Security . | . . . . Squads Dispatched 5 | . 3 2 . Investigation 3 | . 2 1 . Extermination . | . . . . Reinforcement 2 | . 1 1 . Assault . | . . . . Garrison . | . . . . Intercept . | . . . . Construction Impeded . | . . . . Haulers Reinforced . | . . . . Stealth | -11 -10 -9 -9 --------- Run | Scr Mat Mat Min Distress Signals . | . . . . Communications Jammed . | . . . . Distress Signals . | . . . . Times Spotted 36 | . 9 9 18 Peak Tracking Total 13 | . 6 5 13 Tactical Retreats 3 | . . 2 1 Traps | -11 -10 -9 -9 ------- Run | Scr Mat Mat Min Traps Triggered 1 | . 1 . . Indirectly . | . . . . Trap Hack Attempts . | . . . . Triggered . | . . . . Disarmed . | . . . . Reprogrammed . | . . . . Reused . | . . . . Traps Extracted . | . . . . Installed . | . . . . Triggered . | . . . . Machines | -11 -10 -9 -9 ---------- Run | Scr Mat Mat Min Machines Disabled 1 | . 1 . . Max in Single Turn 1 | . 1 . . Machines Sabotaged . | . . . . Garrisons Compromised . | . . . . Overloaded Fab Kills . | . . . . Fab Network Shutdowns . | . . . . Hacking | -11 -10 -9 -9 --------- Run | Scr Mat Mat Min Machines Accessed 4 | . 3 1 . Terminals 4 | . 3 1 . Fabricators . | . . . . Repair Stations . | . . . . Recycling Units . | . . . . Scanalyzers . | . . . . Garrison Access . | . . . . Total Hacks 20 | . 14 6 . Successful 7 | . 3 4 . Failed 13 | . 11 2 . Catastrophic 2 | . 2 . . Database Lockouts . | . . . . Manual . | . . . . Terminals 20 | . 14 6 . Fabricators . | . . . . Repair Stations . | . . . . Recycling Units . | . . . . Scanalyzers . | . . . . Garrison Access . | . . . . Terminal Hacks 7 | . 3 4 . Record 2 | . 1 1 . Scanalyzer Index 1 | . . 1 . Alert Level 1 | . . 1 . Locate Traps 1 | . 1 . . Recall Investigation 1 | . 1 . . Hauler Manifests 1 | . . 1 . Fabricator Hacks . | . . . . Repair Station Hacks . | . . . . Recycling Unit Hacks . | . . . . Scanalyzer . | . . . . Garrison Access Hacks . | . . . . Unauthorized Hacks . | . . . . Terminals . | . . . . Fabricators . | . . . . Repair Stations . | . . . . Recycling Units . | . . . . Scanalyzers . | . . . . Garrison Access . | . . . . Data Cores Recovered . | . . . . Used . | . . . . Hacking Detections 4 | . 3 1 . Full Trace Events 3 | . 2 1 . Feedback Events . | . . . . Feedback Blocked . | . . . . Robot Schematics Acquired . | . . . . Robots Built . | . . . . Matter . | . . . . Time . | . . . . Total Robot Build Rating . | . . . . Part Schematics Acquired . | . . . . Parts Built . | . . . . Matter . | . . . . Time . | . . . . Total Part Build Rating . | . . . . Parts Repaired . | . . . . Time . | . . . . Parts Recycled . | . . . . Recycled Matter . | . . . . Retrieved Matter . | . . . . Retrieved Components . | . . . . Parts Scanalyzed . | . . . . Part Schematics Acquired . | . . . . Parts Damaged . | . . . . Bothacking | -11 -10 -9 -9 ------------ Run | Scr Mat Mat Min Used RIF Installer . | . . . . Robots Hacked . | . . . . Non-combat . | . . . . Combat . | . . . . Robot Hacks Applied . | . . . . Relay Couplers Released . | . . . . Robots Rewired . | . . . . Allies Hacked . | . . . . Hacks Repelled . | . . . . Allies | -11 -10 -9 -9 -------- Run | Scr Mat Mat Min Total Allies . | . . . . Largest Group . | . . . . Highest-Rated Group . | . . . . Highest-Rated Ally . | . . . . Total Orders . | . . . . Ally Attacks . | . . . . Total Damage . | . . . . Kills . | . . . . Allies Corrupted . | . . . . Allies Melted . | . . . . Intel | -11 -10 -9 -9 ------- Run | Scr Mat Mat Min Robot Analysis Total . | . . . . Derelict Logs Recovered . | . . . . Drone Launches . | . . . . Drone Recoveries . | . . . . Exploration | -11 -10 -9 -9 ------------- Run | Scr Mat Mat Min Turns Passed 668 | 57 238 246 127 Spaces Moved 418 | 43 145 167 63 Core 24 | 16 . . 8 Treads . | . . . . Legs 394 | 27 145 167 55 Wheels . | . . . . Hover . | . . . . Flight . | . . . . Fastest Speed 50 | 50 120 120 150 Average Speed 137 | 106 120 135 201 Slowest Speed 550 | 150 120 180 550 Overloaded Moves . | . . . . Propulsion Burnouts . | . . . . Robots Hopped . | . . . . Cave-ins Triggered . | . . . . Exploration Rate (%) 18 | 4 36 13 21 Regions Visited 3 Branch Regions 1 Pre-discovered Areas . | . . . . Known Exits Taken . | . . . . Unknown Exits Taken 3 | 1 1 1 . Scrap Searched . | . . . . Spaces Dug . | . . . . Terrain Destroyed 115 | . 99 16 . Melee . | . . . . Projectile . | . . . . AOE 115 | . 99 16 . Terrain Rammed . | . . . . Walls Destroyed . | . . . . Machines Disabled . | . . . . Actions | -11 -10 -9 -9 --------- Run | Scr Mat Mat Min Total 470 | 54 179 174 63 Wait 2 | . 2 . . Move 415 | 42 144 166 63 Hop . | . . . . Pick Up 12 | 6 5 1 . Fast Attach . | . . . . Attach 7 | 6 1 . . Detach . | . . . . Swap 5 | . 4 1 . Drop . | . . . . Fire 26 | . 20 6 . Melee . | . . . . Ram . | . . . . Kick 3 | . 3 . . Crush . | . . . . Escape Stasis . | . . . . Rewire . | . . . . Trap . | . . . . Miscellaneous . | . . . . Route ------- -11/Scrapyard -10/Materials (discovered 2 exits: *Mat / [*Min]) -9/Materials (discovered 2 exits: [*Min] / [*Sto]) -9/Mines (discovered 1 exit: [*Zio]) History --------- Turn | Location | Event 4 | -11/Scrapyard | Discovered new exit (range 15) 58 | -11/Scrapyard | Entered Materials 173 | -10/Materials | Discovered new exit (range 15) 231 | -10/Materials | Discovered new exit (range 16) 296 | -10/Materials | Entered another Materials area 296 | -9/Materials | Evolved 2 slots: Power x1, Utility x1 317 | -9/Materials | Build established: Mutant 523 | -9/Materials | Discovered new exit (range 11) 525 | -9/Materials | Discovered new exit (range 8) 542 | -9/Materials | Entered Mines 543 | -9/Mines | A Derelict revealed a hidden shortcut to a safe place 599 | -9/Mines | Assembled infested the area 604 | -9/Mines | Assisted by a Guerilla fighting off Assembled 628 | -9/Mines | Core integrity fell below 50% 655 | -9/Mines | Lost 4 parts (1p2n1w) 659 | -9/Mines | Core integrity fell below 20% 669 | -9/Mines | Destroyed by as-46081 with Assembled Maul Last Messages --------------- 00634_ R-06 Scavenger collects Wheel. 00636_ The unstable cave ceiling collapses. 00639_ U-05 Engineer lays Concrete. 00640_ R-06 Scavenger collects Wheel. 00640_ U-05 Engineer lays Concrete. 00641_ The unstable cave ceiling collapses. 00641_ U-05 Engineer lays Concrete. 00642_ K-01 Serf collects debris. 00642_ U-05 Engineer lays Concrete. 00643_ U-05 Engineer builds a Wall. 00644_ The unstable cave ceiling collapses. 00648_ Acquired 1 matter. 00648_ U-05 Engineer lays Concrete. 00650_ U-05 Engineer builds a Wall. 00651_ U-05 Engineer destroyed. 00656_ as-63015 destroyed. 00657_ Transport Network Coupler destroyed. 00657_ System corrupted by crushing effect (+4). 00664_ Knocked back. 00665_ The unstable cave ceiling collapses. Map ----- +----------------------------------------------------+ | ?????????? ???????????????? | | ???????????# ?????????????????? | | ???????????#" ! ????????????????????? | | ???????????##" %* "#?????????????????????? | | ???????????# "" "#??????????????????????? | | ??????????????#" "#??????????????????????? | | ??????????????## ##??????????????????????? | | ?????????????### % ###????????????????????? | | ?????????????# #????????????????????? | | ???????###???# #????????????????????? | | ??????## ##?# % ???????????????????? | | ??????# ### ?##??????????????????? | | ??????# ## ##????????????????????? | | ??????# ##???????????????????? | | ??????## #???????????????????? | | ???????## #????????????????????? | | ????????### #????????????????????? | | ??????????# # #????????????????????? | | ??????????# #????????????????????? | | ??????????## ! ##????????????????????? | | ??????????# % # #?????????????????????? | | ??????????## #=!# ##?####????????????????? | | ??????????## !%# ### #####????????????? | | ???????????## *a##### r #????????????? | | ????????????##a aa #???????????????? | | ?????????????# a@ ##???????????????? | | ?????????????##### ##????????????????? | | ?????????????????# >t #?????????????????? | | ????????????????## ##?????????????????? | | ???????????????## ##?????????????????? | | ????????######## ####### #?????????? | | ?????# ??????? | | ?????# ??????? | | ?????# ######### ########????????? | | ????????????????## ##???????????????? | | ?????????????????#### ##????????????????? | | ????????????????????#####?????????????????? | | ??????????????????????????????????????????? | | ??????????????????????????????????????????? | | ??????????????????????????????????????????? | | ??????????????????????????????????????????? | | ??????????????????????????????????????????? | | ??????????????????????????????????????????? | | ??????????????????????????????????????????? | | ??????????????????????????????????????????? | | ??????????????????????????????????????????? | | | | | | | | | +----------------------------------------------------+ Best States ------------- Heat Dissipation 28 Energy Generation 10 Energy Capacity 250 Matter Stores 289 Matter Capacity 300 Sight Range 16 Terrain Scan Density 10 Evasion (%) 40 Targeting Accuracy 5 Item Schematics ----------------- None Robot Schematics ------------------ None Fabricated ------------ Nothing Alien Tech Used ----------------- None Achievements -------------- None Challenges ------------ None Game ------ Seed HypervelocityCompactBox Manual? 0 Play Time 00:16:49 Cumulative 19.8 hours Start 2021.12.04 @ 10:11:14 End 2021.12.04 @ 10:36:07 Sessions 1 Manual Loads 0 Difficulty Rogue Special Mode None Game No. 38 Rogue 38 Adventurer 0 Explorer 0 Win Type - Total 0 Types 0/0/0/0/0/0/0/0/0 Lore% 16 Gallery% 22 Achievement% 16 Wizard Run 0 Options --------- ASCII 0 Keyboard 0 Movement Numpad Keybinds 0 Fullscreen 1 Font 18/SmallcapsGlow Map View 76x50 Tactical HUD 1 Map Filters NONE Filters NONE Steam 1 RUN: 32e81a10-5370-4f86-98a4-786759208ced